bitfinex/quotes_BTCUSD_20220307
["timestamp","ask_amount","ask_price","bid_price","bid_amount"]
[1646676236218,0.406558,38429.0,38428.0,0.001]
[1646676237220,0.67840522,38429.0,38428.0,0.001]
[1646676237882,0.406558,38429.0,38428.0,0.001]
[1646676238481,0.706558,38429.0,38428.0,0.001]
[1646676240392,0.706558,38429.0,38416.0,0.052]
[1646676240393,0.406559,38426.0,38416.0,0.052]
[1646676240587,0.02577,38423.0,38416.0,0.052]
[1646676240791,0.60953997,38417.0,38416.0,0.002]
[1646676241220,0.86574336,38417.0,38416.0,0.002]
[1646676241418,0.60953997,38417.0,38416.0,0.002]
[1646676241622,0.406559,38417.0,38416.0,0.002]
[1646676241819,0.075186,38428.0,38416.0,0.002]
[1646676241820,0.11008,38428.0,38416.0,0.002]
[1646676242022,0.406559,38425.0,38416.0,0.002]
[1646676242419,0.406559,38425.0,38418.0,0.22103225]
[1646676242820,0.406559,38425.0,38417.0,0.16795772]
[1646676243021,0.406559,38425.0,38418.0,0.3]
[1646676243221,1.0771,38432.0,38418.0,0.3]
[1646676243222,0.406559,38431.0,38418.0,0.3]
[1646676243424,0.406559,38430.0,38425.0,0.16730829]
[1646676243821,0.406559,38430.0,38419.0,0.00026042]
[1646676244122,0.406559,38430.0,38422.0,0.25815716]
[1646676244123,0.66054969,38430.0,38422.0,0.25815716]
[1646676244323,0.66054969,38430.0,38416.0,0.302]
[1646676244522,0.66054969,38430.0,38423.0,0.00026041]
[1646676245371,0.406559,38430.0,38423.0,0.00026041]
[1646676245671,0.406559,38428.0,38425.0,0.0002498]
[1646676246469,0.46124969,38426.0,38425.0,0.0002498]
[1646676246669,0.46124969,38426.0,38418.0,0.19380697]
[1646676246872,0.406559,38426.0,38425.0,0.00023674]
[1646676247974,0.406559,38426.0,38424.0,0.17328212]
[1646676248171,0.406559,38426.0,38424.0,0.17351887]
[1646676248815,0.406559,38426.0,38424.0,0.00023675]
[1646676249215,0.406559,38426.0,38423.0,0.21986003]
[1646676249417,0.4644,38439.0,38424.0,0.32577]
[1646676249418,0.01008,38438.0,38424.0,0.32577]
[1646676249616,0.406559,38437.0,38426.0,0.06506784]
[1646676249822,0.406559,38437.0,38433.0,0.22369766]
[1646676250217,0.20902899,38434.0,38424.0,0.23420622]
[1646676250418,0.706559,38433.0,38416.0,0.002]
[1646676250618,0.706559,38433.0,38420.0,0.05]
[1646676250916,0.706559,38433.0,38416.0,0.06708498]
[1646676250917,0.706559,38433.0,38417.0,0.05]
[1646676251316,0.1858065,38432.0,38424.0,0.17980871]
[1646676251518,0.406559,38431.0,38424.0,0.17980871]
[1646676251718,0.706559,38431.0,38424.0,0.22980871]
[1646676252466,0.406559,38431.0,38424.0,0.22980871]
[1646676252867,0.406559,38431.0,38426.0,0.00023101]
[1646676253069,0.4,38430.0,38426.0,0.00023101]
[1646676253276,0.4,38430.0,38415.0,0.052]
[1646676253277,0.02577,38426.0,38413.0,0.001]
[1646676253472,1.45,38421.0,38407.0,0.002]
[1646676253675,0.02577,38416.0,38404.0,0.002]
[1646676253876,0.02577,38414.0,38404.0,0.002]
[1646676254069,0.19337868,38408.0,38404.0,0.002]
[1646676254272,0.706559,38407.0,38404.0,0.002]
[1646676254671,0.806559,38407.0,38404.0,0.002]
[1646676255070,0.02577,38405.0,38400.0,0.00140909]
[1646676255270,0.497467,38402.0,38400.0,0.00140909]
[1646676255471,0.497467,38402.0,38396.0,0.003]
[1646676255472,0.87577,38400.0,38396.0,0.003]
[1646676255673,0.29275931,38397.0,38396.0,0.003]
[1646676255872,0.706559,38397.0,38396.0,0.003]
[1646676256322,0.406559,38396.0,38390.0,0.002]
[1646676256517,0.3,38395.0,38390.0,0.002]
[1646676256716,0.406559,38394.0,38390.0,0.002]
[1646676257118,0.406559,38394.0,38388.0,0.002]
[1646676257119,0.55,38392.0,38388.0,0.002]
[1646676257318,0.72577,38389.0,38373.0,0.065161]
[1646676257521,0.406559,38388.0,38373.0,0.065161]
[1646676257720,0.406559,38388.0,38373.0,0.130306]
[1646676257916,0.2140389,38385.0,38375.0,0.22611687]
[1646676258117,0.406559,38384.0,38378.0,0.18957408]
[1646676259117,0.406559,38384.0,38378.0,0.001]
[1646676259518,0.06517,38383.0,38378.0,0.001]
[1646676259722,0.165166,38391.0,38378.0,0.001]
[1646676259723,1.52081311,38399.0,38378.0,0.001]
[1646676259971,0.4799,38392.0,38378.0,0.151]
[1646676260172,0.5798,38392.0,38380.0,0.01302]
[1646676260373,0.02577,38389.0,38380.0,0.01302]
[1646676260570,0.406559,38388.0,38382.0,0.16418535]
[1646676260973,0.55794239,38391.0,38382.0,0.16418535]
[1646676260974,0.3,38391.0,38382.0,0.16418535]
[1646676261173,0.406559,38397.0,38383.0,0.15]
[1646676261373,0.3,38396.0,38382.0,0.16445148]
[1646676261575,0.406559,38395.0,38382.0,0.16445148]
[1646676261974,0.406559,38395.0,38387.0,0.17872295]
[1646676262174,0.406559,38395.0,38386.0,0.26642797]
[1646676262374,0.406559,38395.0,38386.0,0.31642797]
[1646676262573,0.406559,38395.0,38386.0,0.05]
[1646676262778,0.406559,38395.0,38382.0,0.2644515]
[1646676263175,0.406559,38395.0,38383.0,0.16397984]
[1646676263379,0.1789391,38391.0,38383.0,0.16397984]
[1646676263616,1.58463083,38399.0,38389.0,0.21525904]
[1646676263617,0.25885549,38399.0,38389.0,0.21525904]
[1646676263816,0.406559,38398.0,38384.0,0.3]
[1646676264015,0.406559,38398.0,38383.0,0.46397984]
[1646676264218,0.1,38397.0,38383.0,0.46397984]
[1646676264414,0.406559,38396.0,38383.0,0.46397984]
[1646676264614,0.47148496,38396.0,38383.0,0.21397984]
[1646676264816,0.406559,38396.0,38388.0,0.16008445]
[1646676265018,0.406559,38396.0,38389.0,0.15594407]
[1646676265820,0.16969488,38395.0,38392.0,1.45]
[1646676266019,0.0999,38406.0,38392.0,1.45]
[1646676266020,0.0999,38406.0,38394.0,0.40658]
[1646676266219,0.0999,38406.0,38395.0,0.22510135]
[1646676266418,0.0999,38406.0,38396.0,0.24388]
[1646676266823,0.00102757,38408.0,38399.0,0.17604278]
[1646676267021,0.02577,38406.0,38396.0,0.05]
[1646676267222,0.40658,38405.0,38394.0,0.05]
[1646676267472,0.40658,38405.0,38390.0,0.1]
[1646676267669,0.21919941,38391.0,38390.0,0.1]
[1646676267869,0.62577941,38391.0,38390.0,0.05]
[1646676268068,0.40658,38390.0,38384.0,0.24016051]
[1646676268271,0.1,38406.0,38385.0,0.3]
[1646676268470,0.40658,38405.0,38384.0,0.05]
[1646676268668,0.40658,38405.0,38382.0,0.00025705]
[1646676268868,0.02577,38403.0,38382.0,0.00025705]
[1646676269068,0.43235,38403.0,38382.0,0.00025705]
[1646676269269,0.2088146,38393.0,38385.0,0.2455056]
[1646676269472,0.4704241,38392.0,38386.0,0.16046096]
[1646676269668,0.17310504,38387.0,38385.0,0.05]
[1646676269870,0.17310504,38387.0,38382.0,0.00024786]
[1646676270078,0.40658,38386.0,38382.0,0.00024786]
[1646676270475,0.42713156,38386.0,38382.0,0.00024786]
[1646676270682,0.46389491,38383.0,38382.0,0.00024786]
[1646676270872,0.46389491,38383.0,38379.0,0.002]
[1646676270873,0.20803446,38380.0,38379.0,0.002]
[1646676271122,0.40662,38380.0,38379.0,0.002]
[1646676271325,0.5542,38392.0,38379.0,0.002]
[1646676271525,6e-05,38382.0,38379.0,0.002]
[1646676271726,0.40662,38381.0,38379.0,0.002]
[1646676272921,0.536963,38381.0,38379.0,0.002]
[1646676273123,1.37577,38379.0,38375.0,0.001]
[1646676273328,0.39095,38378.0,38375.0,0.001]
[1646676273628,0.16717481,38377.0,38375.0,0.001]
[1646676273923,0.50680218,38377.0,38375.0,0.001]
[1646676274729,0.3,38376.0,38375.0,0.001]
[1646676275380,0.706645,38376.0,38375.0,0.001]
[1646676275883,0.02877,38374.0,38368.0,0.00053623]
[1646676276082,0.497611,38371.0,38368.0,0.00053623]
[1646676276282,1.45,38369.0,38360.0,0.001]
[1646676276483,1.3,38361.0,38358.0,0.002]
[1646676276690,1.3,38361.0,38357.0,0.001]
[1646676276691,0.754645,38360.0,38357.0,0.001]
[1646676276887,0.754645,38360.0,38346.0,0.001]
[1646676276888,0.406645,38358.0,38346.0,0.001]
[1646676277082,0.406645,38347.0,38346.0,0.001]
[1646676277387,0.048,38347.0,38346.0,0.001]
[1646676277990,0.15,38357.0,38346.0,0.407645]
[1646676278183,0.15,38357.0,38343.0,0.001]
[1646676278184,0.592355,38346.0,38343.0,0.001]
[1646676278383,0.592355,38346.0,38345.0,0.1771828]
[1646676278619,0.592355,38346.0,38345.0,0.4283068]
[1646676279221,0.47191923,38346.0,38345.0,0.5283068]
[1646676279418,0.47191923,38346.0,38345.0,0.63215516]
[1646676279419,0.47114272,38346.0,38345.0,0.63215516]
[1646676279620,0.47114272,38346.0,38345.0,0.60638516]
[1646676280024,0.47114272,38346.0,38345.0,0.54119316]
[1646676280320,0.113195,38367.0,38347.0,0.02577]
[1646676280526,0.065195,38367.0,38349.0,0.02577]
[1646676280721,0.065195,38367.0,38356.0,0.21462441]
[1646676280723,0.28132015,38367.0,38356.0,0.21462441]
[1646676280920,0.406746,38365.0,38356.0,0.21462441]
[1646676281121,0.406746,38366.0,38356.0,0.21462441]
[1646676281324,0.0652,38363.0,38348.0,0.24581644]
[1646676281523,0.406746,38362.0,38349.0,0.3]
[1646676281725,0.1132,38363.0,38348.0,0.23279644]
[1646676282122,0.15886005,38361.0,38354.0,0.0002649]
[1646676282390,0.065208,38360.0,38354.0,0.0002649]
[1646676282988,0.065208,38360.0,38346.0,0.15]
[1646676283185,0.065208,38360.0,38355.0,0.00025455]
[1646676283585,0.406746,38359.0,38355.0,0.00025455]
[1646676283785,0.065208,38360.0,38355.0,0.00025455]
[1646676283786,0.406746,38358.0,38355.0,0.00025455]
[1646676284088,0.20539192,38356.0,38349.0,0.00101836]
[1646676284286,0.406746,38355.0,38343.0,0.001]
[1646676284489,0.25388624,38350.0,38343.0,0.001]
[1646676284689,0.406746,38349.0,38343.0,0.001]
[1646676284885,0.25388624,38350.0,38337.0,0.01303]
[1646676285287,0.406746,38342.0,38334.0,0.01303]
[1646676285489,0.25388624,38350.0,38342.0,0.00086811]
[1646676285689,0.406768,38349.0,38342.0,0.00086811]
[1646676285887,0.406768,38348.0,38342.0,0.00086811]
[1646676286113,0.22677572,38344.0,38342.0,0.00086811]
[1646676286515,0.58394568,38343.0,38342.0,0.00086811]
[1646676286721,1.03194568,38343.0,38342.0,0.00086811]
[1646676286918,1.09718668,38343.0,38342.0,0.00086811]
[1646676287119,0.67577,38341.0,38335.0,0.00104821]
[1646676287315,0.67577,38341.0,38329.0,0.001]
[1646676287316,0.02577,38337.0,38329.0,0.001]
[1646676287517,0.20380994,38330.0,38329.0,0.001]
[1646676287722,0.454768,38330.0,38329.0,0.001]
[1646676287916,0.454768,38330.0,38328.0,0.002]
[1646676287917,0.02714,38330.0,38328.0,0.002]
[1646676288127,1.699308,38329.0,38319.0,0.001]
[1646676288322,1.699308,38329.0,38308.0,0.001]
[1646676288323,1.45,38326.0,38308.0,0.001]
[1646676288518,1.45,38326.0,38300.0,0.03215]
[1646676288519,0.065285,38319.0,38303.0,0.001]
[1646676288715,0.05,38315.0,38307.0,0.20060824]
[1646676288917,0.05,38315.0,38303.0,0.001]
[1646676288918,0.16803673,38307.0,38303.0,0.001]
[1646676289119,0.454824,38306.0,38304.0,0.001]
[1646676289419,0.454824,38306.0,38290.0,0.05500299]
[1646676289420,0.406824,38303.0,38290.0,0.05500299]
[1646676289618,0.048,38302.0,38287.0,0.03616]
[1646676289868,0.406824,38300.0,38298.0,0.17807217]
[1646676290068,0.454824,38300.0,38287.0,0.03616]
[1646676290275,0.406824,38299.0,38287.0,0.03616]
[1646676290472,0.0603717,38294.0,38287.0,0.03616]
[1646676290681,0.403004,38291.0,38275.0,0.04001237]
[1646676290870,0.406824,38289.0,38269.0,6.853e-05]
[1646676291072,0.15770825,38282.0,38269.0,6.853e-05]
[1646676291269,0.24713593,38278.0,38269.0,6.853e-05]
[1646676291571,0.406867,38277.0,38274.0,0.00026085]
[1646676291774,0.406867,38277.0,38264.0,0.12001032]
[1646676291775,1.445,38275.0,38264.0,0.05426]
[1646676291972,0.05,38273.0,38256.0,0.0999]
[1646676292173,0.5998,38270.0,38256.0,0.0999]
[1646676292369,0.5998,38270.0,38252.0,0.0555]
[1646676292370,0.27930344,38257.0,38252.0,0.0555]
[1646676292569,0.27930344,38257.0,38235.0,0.271814]
[1646676292570,0.28036967,38246.0,38235.0,0.271814]
[1646676292772,0.27930344,38257.0,38228.0,0.21188972]
[1646676292773,0.76822615,38245.0,38228.0,0.21188972]
[1646676292972,0.3,38244.0,38228.0,0.21188972]
[1646676293169,0.406896,38243.0,38228.0,0.19188972]
[1646676293369,0.406944,38241.0,38228.0,0.19188972]
[1646676293629,0.406944,38241.0,38222.0,0.0518]
[1646676293630,0.348,38240.0,38222.0,0.0518]
[1646676293825,0.348,38240.0,38228.0,1.45]
[1646676293826,0.27235454,38240.0,38228.0,1.45]
[1646676294025,2.55958845,38248.0,38239.0,0.1948]
[1646676294224,2.55958845,38248.0,38241.0,0.8]
[1646676294422,0.9746,38256.0,38243.0,1.45]
[1646676294423,0.85563382,38256.0,38243.0,1.45]
[1646676294623,0.4462419,38259.0,38244.0,1.745]
[1646676294624,0.2499999,38259.0,38244.0,1.745]
[1646676294824,0.0999,38262.0,38246.0,0.404689]
[1646676295023,0.0999,38262.0,38247.0,0.706947]
[1646676295222,0.2499999,38273.0,38252.0,0.403647]
[1646676295424,0.2499999,38273.0,38253.0,1.295]
[1646676295728,0.2499999,38273.0,38261.0,1.401776]
[1646676295922,3.99832609,38300.0,38272.0,0.23847421]
[1646676295923,0.26783961,38286.0,38272.0,0.23847421]
[1646676296126,0.18429205,38281.0,38273.0,0.406776]
[1646676296323,0.21545544,38287.0,38273.0,1.501776]
[1646676296524,0.21545544,38287.0,38273.0,0.1]
[1646676296724,0.2499999,38291.0,38275.0,0.456776]
[1646676296928,0.2499999,38291.0,38276.0,0.048]
[1646676297127,0.065314,38312.0,38276.0,0.048]
[1646676297129,0.195988,38306.0,38276.0,0.048]
[1646676297373,0.5630599,38307.0,38287.0,0.07450426]
[1646676297374,0.01305,38305.0,38287.0,0.07450426]
[1646676297574,0.2499999,38307.0,38288.0,0.454776]
[1646676297575,0.01305,38306.0,38288.0,0.454776]
[1646676297782,0.2499999,38307.0,38289.0,0.3]
[1646676297974,0.2449999,38307.0,38305.0,0.003171]
[1646676298177,0.2449999,38307.0,38306.0,0.048]
[1646676298378,0.195988,38309.0,38306.0,0.098]
[1646676298676,0.01305,38320.0,38306.0,0.098]
[1646676298875,0.0002546,38308.0,38306.0,0.048]
[1646676299075,0.05307545,38305.0,38294.0,0.05]
[1646676299274,0.05307545,38305.0,38295.0,0.398]
[1646676299275,0.195988,38304.0,38295.0,0.398]
[1646676299473,0.1621854,38302.0,38295.0,0.05]
[1646676299677,0.195988,38301.0,38285.0,0.05]
[1646676299876,0.195988,38301.0,38284.0,0.25138732]
[1646676299877,0.05338133,38294.0,38284.0,0.25138732]
[1646676300076,0.195988,38295.0,38277.0,0.3]
[1646676300277,0.195988,38285.0,38276.0,0.005]
[1646676300482,0.195988,38283.0,38276.0,0.005]
[1646676300674,0.2450516,38286.0,38272.0,0.05]
[1646676300675,0.195988,38281.0,38272.0,0.05]
[1646676300880,0.195988,38281.0,38266.0,0.00025485]
[1646676301120,0.195988,38281.0,38267.0,0.22495635]
[1646676301318,0.0001394,38278.0,38269.0,0.406776]
[1646676301521,9.4e-06,38278.0,38270.0,0.995]
[1646676301719,9.4e-06,38278.0,38275.0,0.995]
[1646676301922,0.0999,38293.0,38278.0,5.06e-05]
[1646676302119,0.2449999,38300.0,38286.0,0.995]
[1646676302326,0.2449999,38300.0,38280.0,0.02577]
[1646676302327,0.2449999,38300.0,38289.0,1.095]
[1646676302519,0.1998,38303.0,38293.0,2.445]
[1646676302722,7.545e-05,38305.0,38295.0,1.20898292]
[1646676302919,7.545e-05,38305.0,38296.0,1.749776]
[1646676303118,7.545e-05,38305.0,38296.0,0.754776]
[1646676303317,7.545e-05,38305.0,38296.0,0.098]
[1646676303522,7.545e-05,38305.0,38297.0,0.706776]
[1646676303720,5.45e-06,38305.0,38304.0,0.995]
[1646676304021,5.45e-06,38305.0,38304.0,0.098]
[1646676304418,5.45e-06,38305.0,38304.0,0.048]
[1646676304619,5.45e-06,38305.0,38304.0,0.098]
[1646676304877,5.45e-06,38305.0,38304.0,1.549776]
[1646676305074,5.45e-06,38305.0,38304.0,2.336676]
[1646676305273,5.45e-06,38305.0,38304.0,1.143]
[1646676305474,5.45e-06,38305.0,38304.0,1.549776]
[1646676306076,5.45e-06,38305.0,38304.0,2.786676]
[1646676306275,0.2182241,38331.0,38305.0,1.193676]
[1646676306276,9.83e-06,38306.0,38305.0,1.193676]
[1646676306474,9.83e-06,38306.0,38305.0,2.686676]
[1646676306878,9.83e-06,38306.0,38305.0,2.936676]
[1646676307074,0.2182241,38331.0,38307.0,0.2]
[1646676307276,0.23528811,38333.0,38312.0,0.81267]
[1646676307476,0.17291133,38339.0,38307.0,0.2]
[1646676307477,0.17291133,38339.0,38321.0,0.06867192]
[1646676307479,0.01304,38338.0,38321.0,0.06867192]
[1646676307679,0.13734383,38317.0,38314.0,0.15]
[1646676307879,0.01303,38342.0,38316.0,0.406776]
[1646676308081,0.01303,38342.0,38325.0,0.15]
[1646676308279,0.21013449,38346.0,38330.0,0.15]
[1646676308623,0.1,38358.0,38330.0,0.15]
[1646676308624,0.01304,38353.0,38332.0,1.45]
[1646676308818,0.15,38358.0,38333.0,0.348]
[1646676309020,0.22401951,38343.0,38333.0,0.448]
[1646676309219,0.195988,38355.0,38333.0,0.148]
[1646676309520,0.15,38348.0,38341.0,0.0999]
[1646676309720,0.23365536,38339.0,38331.0,0.05]
[1646676309918,0.17728557,38342.0,38320.0,1.449776]
[1646676310120,0.3,38341.0,38324.0,0.07189971]
[1646676310318,0.20824191,38340.0,38325.0,0.454776]
[1646676310521,0.1,38351.0,38325.0,0.454776]
[1646676310522,0.31303,38349.0,38326.0,1.02077]
[1646676310725,0.31303,38355.0,38327.0,1.449776]
[1646676310926,0.27284879,38351.0,38339.0,0.24341327]
[1646676311120,0.00101723,38353.0,38339.0,0.24341327]
[1646676311520,0.00101723,38353.0,38339.0,0.05]
[1646676311521,0.32326886,38349.0,38339.0,0.05]
[1646676311720,0.32326886,38349.0,38333.0,0.048]
[1646676311721,0.195988,38348.0,38333.0,0.048]
[1646676311924,0.195988,38348.0,38331.0,0.05]
[1646676311925,0.245988,38347.0,38331.0,0.05]
[1646676312122,0.245988,38347.0,38326.0,0.048]
[1646676312123,0.195988,38343.0,38326.0,0.048]
[1646676312369,0.195988,38341.0,38326.0,0.048]
[1646676312572,0.3132844,38346.0,38336.0,0.27001825]
[1646676312774,0.0002544,38346.0,38337.0,0.0734932]
[1646676312967,0.0002544,38346.0,38337.0,0.406776]
[1646676313166,0.0010174,38354.0,38331.0,0.048]
[1646676313369,0.3,38356.0,38331.0,0.048]
[1646676313569,0.17238321,38343.0,38331.0,0.048]
[1646676313769,0.17238321,38343.0,38332.0,0.406776]
[1646676313972,0.3,38342.0,38328.0,0.05]
[1646676314171,0.19321758,38339.0,38326.0,0.05]
[1646676314373,0.19321758,38339.0,38325.0,0.2499999]
[1646676314376,0.15,38334.0,38325.0,0.2499999]
[1646676314572,0.495988,38338.0,38325.0,0.2499999]
[1646676314573,0.15,38332.0,38325.0,0.2499999]
[1646676314768,0.70110871,38331.0,38325.0,0.2499999]
[1646676314968,0.70110871,38331.0,38314.0,0.4933]
[1646676314969,0.42622092,38326.0,38314.0,0.4933]
[1646676315168,0.42622092,38326.0,38311.0,0.0999]
[1646676315171,0.20073722,38320.0,38311.0,0.0999]
[1646676315372,0.20073722,38320.0,38303.0,0.2499999]
[1646676315373,0.495988,38319.0,38303.0,0.2499999]
[1646676315572,0.490988,38319.0,38303.0,0.2499999]
[1646676315970,0.25647698,38308.0,38301.0,0.29167095]
[1646676316222,0.3,38315.0,38299.0,0.051]
[1646676316428,0.191049,38311.0,38299.0,0.051]
[1646676316624,0.20452063,38312.0,38299.0,0.051]
[1646676317121,0.20452063,38312.0,38302.0,0.24111414]
[1646676317122,0.00023553,38308.0,38302.0,0.24111414]
[1646676317321,0.00023553,38308.0,38299.0,0.051]
[1646676317523,0.191049,38307.0,38299.0,0.051]
[1646676317727,0.19051413,38305.0,38299.0,0.001]
[1646676317922,0.191049,38304.0,38299.0,0.001]
[1646676318121,0.16705001,38304.0,38299.0,0.001]
[1646676318325,0.30023553,38308.0,38299.0,0.001]
[1646676318524,0.00023553,38308.0,38299.0,0.001]
[1646676318923,0.00023553,38308.0,38301.0,0.406412]
[1646676319121,0.3,38317.0,38302.0,0.406412]
[1646676319325,0.17864577,38310.0,38301.0,0.406412]
[1646676319523,0.00023661,38308.0,38301.0,0.406412]
[1646676319723,0.20382312,38307.0,38299.0,0.001]
[1646676319981,0.00023661,38308.0,38299.0,0.001]
[1646676319982,0.00023661,38308.0,38300.0,0.35171]
[1646676320380,0.25243118,38317.0,38300.0,0.35171]
[1646676320381,0.02577,38315.0,38300.0,0.35171]
[1646676320582,0.3,38316.0,38300.0,0.25171]
[1646676320583,0.192815,38312.0,38300.0,0.25171]
[1646676320784,0.00023661,38308.0,38301.0,0.65811254]
[1646676320983,6.61e-06,38308.0,38302.0,0.995]
[1646676321186,6.61e-06,38308.0,38306.0,0.35]
[1646676321384,0.1,38334.0,38311.0,0.2]
[1646676321586,0.23242653,38335.0,38323.0,0.28029118]
[1646676321784,0.167045,38343.0,38324.0,0.1]
[1646676321987,0.1998,38345.0,38324.0,0.4]
[1646676321988,0.01303,38342.0,38324.0,0.4]
[1646676322184,0.01303,38342.0,38323.0,0.30606118]
[1646676322185,0.02577,38340.0,38323.0,0.28029118]
[1646676322385,0.19031732,38325.0,38316.0,0.35]
[1646676322590,0.18930601,38324.0,38312.0,0.3]
[1646676322784,0.18930601,38324.0,38308.0,0.4]
[1646676323384,0.18930601,38324.0,38310.0,0.406412]
[1646676323651,0.01303,38333.0,38318.0,0.81267]
[1646676323852,0.25,38341.0,38319.0,1.0869]
[1646676323853,0.01303,38339.0,38319.0,1.0869]
[1646676324149,0.01303,38340.0,38319.0,1.0869]
[1646676324349,0.01303,38340.0,38309.0,0.2500599]
[1646676324350,0.19656267,38323.0,38309.0,0.2500599]
[1646676324553,0.3,38322.0,38309.0,0.3500599]
[1646676324749,0.3,38322.0,38309.0,0.2500599]
[1646676324949,0.167045,38321.0,38309.0,0.2500599]
[1646676325149,0.02577,38319.0,38309.0,0.2500599]
[1646676325351,0.02577,38318.0,38309.0,6e-05]
[1646676325549,0.20788931,38311.0,38309.0,6e-05]
[1646676325749,0.167045,38310.0,38309.0,6e-05]
[1646676326850,0.167045,38310.0,38300.0,0.71]
[1646676326851,0.49994,38309.0,38300.0,0.71]
[1646676327059,0.52069862,38308.0,38300.0,0.71]
[1646676327251,0.49994,38309.0,38300.0,0.21]
[1646676327472,0.467045,38308.0,38300.0,0.21]
[1646676327677,0.5378489,38301.0,38300.0,0.21]
[1646676327874,0.36536448,38301.0,38300.0,0.21]
[1646676328272,0.36536448,38301.0,38294.0,0.00094542]
[1646676328273,1.15,38300.0,38294.0,0.00094542]
[1646676328477,0.467045,38300.0,38294.0,0.00094542]
[1646676328675,0.617045,38300.0,38294.0,0.00094542]
[1646676328879,0.167045,38300.0,38283.0,2.39434065]
[1646676329275,0.167045,38300.0,38294.0,0.27219692]
[1646676329475,0.49994,38309.0,38294.0,0.27219692]
[1646676329678,0.192815,38308.0,38295.0,0.3]
[1646676329875,0.167045,38308.0,38296.0,0.06722679]
[1646676330078,0.49994,38309.0,38298.0,0.7869]
[1646676330275,0.49994,38309.0,38300.0,0.406412]
[1646676330478,0.20212674,38307.0,38294.0,0.30094552]
[1646676330677,0.18966615,38301.0,38294.0,0.00094552]
[1646676330876,0.167045,38300.0,38294.0,0.00094552]
[1646676331333,0.167045,38300.0,38293.0,0.001]
[1646676332646,0.18966615,38301.0,38288.0,0.79995]
[1646676332836,0.18966615,38301.0,38292.0,0.00094552]
[1646676332837,0.167045,38300.0,38292.0,0.00094552]
[1646676333035,0.18966615,38301.0,38292.0,0.00094552]
[1646676333435,1.52081311,38306.0,38292.0,0.00094552]
[1646676333639,0.00215901,38308.0,38290.0,0.5]
[1646676333838,0.00215901,38308.0,38300.0,0.05]
[1646676334236,0.00215901,38308.0,38293.0,0.79995]
[1646676334435,0.00215901,38308.0,38295.0,0.7869]
[1646676334636,0.00215901,38308.0,38297.0,0.7869]
[1646676334871,0.00215901,38308.0,38295.0,0.5]
[1646676334872,0.30215901,38308.0,38295.0,0.5]
[1646676335069,0.065292,38307.0,38295.0,0.5]
[1646676335270,0.467045,38306.0,38295.0,0.5]
[1646676335470,0.15922264,38300.0,38295.0,0.5]
[1646676335670,0.24716647,38304.0,38295.0,0.5]
[1646676335870,0.17089963,38302.0,38295.0,0.5]
[1646676336370,0.167045,38301.0,38295.0,0.47582863]
[1646676336570,0.167045,38301.0,38292.0,0.00101644]
[1646676336571,0.882348,38301.0,38292.0,0.00101644]
[1646676336772,0.02577,38297.0,38292.0,0.00101644]
[1646676336970,0.167045,38296.0,38292.0,0.00101644]
[1646676337270,0.46761504,38295.0,38287.0,0.002]
[1646676337471,0.16761504,38295.0,38287.0,0.002]
[1646676338170,0.31305,38304.0,38287.0,0.7889]
[1646676338372,0.49445901,38308.0,38289.0,0.7869]
[1646676338636,0.21983371,38304.0,38292.0,0.24597161]
[1646676338837,0.0653,38302.0,38289.0,0.406412]
[1646676339037,0.492815,38301.0,38290.0,0.01305]
[1646676339237,0.492815,38301.0,38288.0,0.00097508]
[1646676339238,0.22110189,38297.0,38288.0,0.00097508]
[1646676339440,0.3,38303.0,38288.0,0.00097508]
[1646676339640,0.3,38303.0,38287.0,0.06621815]
[1646676339937,0.065295,38305.0,38294.0,0.21649283]
[1646676340144,0.01305,38307.0,38294.0,0.21649283]
[1646676340438,0.01305,38307.0,38294.0,0.26649283]
[1646676340638,0.21762672,38306.0,38294.0,0.26649283]
[1646676340938,0.30215901,38308.0,38295.0,0.02577]
[1646676340939,0.00215901,38308.0,38295.0,0.02577]
[1646676341142,0.00214436,38301.0,38299.0,0.00209848]
[1646676341339,0.00214436,38301.0,38300.0,1.193312]
[1646676341537,4.436e-05,38301.0,38300.0,1.243312]
[1646676341937,0.49994,38309.0,38301.0,0.02577]
[1646676342139,0.49994,38309.0,38302.0,0.406412]
[1646676342379,0.49994,38309.0,38302.0,1.243312]
[1646676342573,0.49994,38309.0,38302.0,0.456412]
[1646676342776,0.00023578,38310.0,38303.0,0.40639]
[1646676342975,0.00023578,38310.0,38300.0,0.40639]
[1646676342976,0.15854375,38307.0,38300.0,0.40639]
[1646676343174,0.00023578,38310.0,38300.0,0.40639]
[1646676343375,0.17585473,38313.0,38299.0,0.00209848]
[1646676343376,0.47585473,38313.0,38299.0,0.00209848]
[1646676343577,0.06551979,38310.0,38300.0,0.06609239]
[1646676343775,0.00023579,38310.0,38300.0,0.40639]
[1646676343976,0.00023579,38310.0,38303.0,0.40639]
[1646676344177,0.00023579,38310.0,38303.0,0.43216]
[1646676344377,0.00023579,38310.0,38303.0,1.26906]
[1646676344579,0.215209,38317.0,38303.0,1.24329]
[1646676344779,0.00023285,38310.0,38303.0,0.05]
[1646676344978,0.00023285,38310.0,38304.0,0.40639]
[1646676345283,0.00023285,38310.0,38306.0,1.19329]
[1646676345483,0.00023285,38310.0,38308.0,0.7869]
[1646676345680,0.00023285,38310.0,38309.0,1.41308075]
[1646676345881,0.3,38324.0,38310.0,1.19329]
[1646676346119,0.078305,38327.0,38311.0,0.02577]
[1646676346120,0.365255,38327.0,38311.0,0.02577]
[1646676346320,0.15573538,38323.0,38316.0,0.25129073]
[1646676346525,0.15573538,38323.0,38316.0,0.53540281]
[1646676346723,0.15573538,38323.0,38309.0,0.05]
[1646676346927,0.19988804,38315.0,38308.0,0.5]